fUSD/lending_fUSD_20260610
["ID","MTS","AMOUNT","RATE_DAILY","PERIOD"]
[424721496,1781088665000,-458.23651551,0.00030166,2]
[424721509,1781088665000,-534.36615039,0.00030166,2]
[424721507,1781088665000,-213.14851218,0.00030166,2]
[424721510,1781088665000,-489.85862234,0.00030166,2]
[424721514,1781088665000,-699.33366139,0.00030166,2]
[424721508,1781088665000,-164.730294,0.00030166,2]
[424721518,1781088665000,-173.5050367,0.00030166,2]
[424721512,1781088665000,-165.83993096,0.00030166,2]
[424721513,1781088665000,-653.14539888,0.00030166,2]
[424721511,1781088665000,-1562.08022344,0.00030166,2]
[424721515,1781088665000,-611.18271673,0.00030166,2]
[424721516,1781088665000,-165.37955418,0.00030166,2]
[424721517,1781088665000,-730.23281773,0.00030166,2]
[424721521,1781088665000,-688.02354726,0.00030166,2]
[424721552,1781088665000,-1024.76802701,0.00030166,2]
[424721540,1781088665000,-178.43661158,0.00030166,2]
[424721550,1781088665000,-566.07482667,0.00030166,2]
[424721579,1781088665000,-598.5681238,0.00030166,2]
[424721583,1781088665000,-160.67925462,0.00030166,2]
[424721578,1781088665000,-756.25187856,0.00030166,2]
[424721585,1781088665000,-464.54284813,0.00030167,2]
[424721582,1781088665000,-822.35851355,0.00030166,2]
[424721587,1781088665000,-246.33296056,0.00030167,2]
[424721586,1781088665000,-689.82011954,0.00030167,2]
[424721589,1781088665000,-164.45342755,0.00030167,2]
[424721590,1781088665000,-538.46918679,0.00030167,2]
[424721588,1781088665000,-163.72211089,0.00030167,2]
[424721591,1781088665000,-742.70137766,0.00030167,2]
[424721593,1781088665000,-765.38355734,0.00030167,2]
[424721595,1781088665000,-423.9962486,0.00030167,2]
[424721592,1781088665000,-670.44843651,0.00030167,2]
[424721597,1781088665000,-889.92060353,0.00030167,2]
[424721596,1781088665000,-529.20311807,0.00030167,2]
[424721599,1781088665000,-456.17809448,0.00030167,2]
[424721600,1781088665000,-720.68151984,0.00030167,2]
[424721604,1781088665000,-689.32393115,0.00030167,2]
[424721598,1781088665000,-166.82640269,0.00030167,2]
[424721602,1781088665000,-622.43938096,0.00030167,2]
[424721601,1781088665000,-680.13297208,0.00030167,2]
[424721603,1781088665000,-754.45310414,0.00030167,2]
[424721605,1781088665000,-722.99968041,0.00030167,2]
[424721548,1781088665000,-166.63677875,0.00030166,2]
[424721581,1781088665000,-770.53600293,0.00030166,2]
[424721584,1781088665000,-659.06013518,0.00030166,2]
[424721594,1781088665000,-622.6692051,0.00030167,2]
[424721580,1781088665000,-800.73994211,0.00030166,2]
[424721547,1781088665000,-738.96070478,0.00030166,2]
[424721575,1781088665000,-466.71656058,0.00030166,2]
[424721554,1781088665000,-787.60245735,0.00030166,2]
[424721553,1781088665000,-726.26262634,0.00030166,2]
[424721557,1781088665000,-527.65537141,0.00030166,2]
[424721555,1781088665000,-160.17854491,0.00030166,2]
[424721556,1781088665000,-659.30148783,0.00030166,2]
[424721561,1781088665000,-707.00653031,0.00030166,2]
[424721559,1781088665000,-467.03969148,0.00030166,2]
[424721560,1781088665000,-531.38486658,0.00030166,2]
[424721562,1781088665000,-678.83385667,0.00030166,2]
[424721564,1781088665000,-611.56717923,0.00030166,2]
[424721572,1781088665000,-613.65667015,0.00030166,2]
[424721558,1781088665000,-616.05229647,0.00030166,2]
[424721576,1781088665000,-634.71292811,0.00030166,2]
[424721577,1781088665000,-781.97814527,0.00030166,2]
[424721573,1781088665000,-414.97362751,0.00030166,2]
[424721569,1781088665000,-615.87332547,0.00030166,2]
[424721567,1781088665000,-443.42587471,0.00030166,2]
[424721570,1781088665000,-647.79219071,0.00030166,2]
[424721571,1781088665000,-889.24997998,0.00030166,2]
[424721574,1781088665000,-451.00953903,0.00030166,2]
[424721566,1781088665000,-651.15293089,0.00030166,2]
[424721565,1781088665000,-740.67305484,0.00030166,2]
[424721568,1781088665000,-661.36191857,0.00030166,2]
[424721563,1781088665000,-532.62747747,0.00030166,2]
[424721653,1781088666000,-908.46,0.000304,10]
[424721647,1781088666000,-2499.98,0.0003025,2]
[424721654,1781088666000,-186.81,0.00030411,120]
[424721644,1781088666000,-2313.5,0.00030237,4]
[424721642,1781088666000,-646.0,0.00030212,30]
[424721639,1781088666000,-627.0,0.00030212,30]
[424721641,1781088666000,-1829.0,0.00030212,30]
[424721637,1781088666000,-473.0,0.00030212,30]
[424721634,1781088666000,-1839.0,0.00030212,30]
[424721640,1781088666000,-547.0,0.00030212,30]
[424721646,1781088666000,-2500.0,0.0003025,2]
[424721643,1781088666000,-1235.0,0.00030212,30]
[424721648,1781088666000,-2500.0,0.0003025,2]
[424721665,1781088666000,-250.0,0.00030467,2]
[424721650,1781088666000,-179.97120458,0.00030362,2]
[424721652,1781088666000,-564.0,0.00030385,2]
[424721651,1781088666000,-1166.92,0.00030384,120]
[424721649,1781088666000,-748.0,0.00030341,5]
[424721656,1781088666000,-1274.0,0.00030432,2]
[424721657,1781088666000,-382.0,0.00030432,2]
[424721655,1781088666000,-1358.0,0.00030432,2]
[424721666,1781088666000,-250.0,0.00030467,2]
[424721659,1781088666000,-419.0,0.00030432,2]
[424721667,1781088666000,-277.71236214,0.00030467,2]
[424721664,1781088666000,-200.0,0.00030437,2]
[424721636,1781088666000,-641.0,0.00030212,30]
[424721645,1781088666000,-1286.1,0.00030239,2]
[424721638,1781088666000,-1757.0,0.00030212,30]
[424721606,1781088666000,-454.91930006,0.00030167,2]
[424721633,1781088666000,-551.0,0.00030212,30]
[424721663,1781088666000,-200.0,0.00030437,2]
[424721607,1781088666000,-822.60636532,0.00030167,2]
[424721608,1781088666000,-672.00007551,0.00030167,2]
[424721617,1781088666000,-622.00004116,0.00030168,2]
[424721619,1781088666000,-658.60429836,0.00030168,2]
[424721609,1781088666000,-765.64526774,0.00030167,2]
[424721610,1781088666000,-497.42613697,0.00030167,2]
[424721614,1781088666000,-605.8399451,0.00030168,2]
[424721611,1781088666000,-686.76603131,0.00030167,2]
[424721613,1781088666000,-787.7217969,0.00030167,2]
[424721612,1781088666000,-814.025609,0.00030167,2]
[424721615,1781088666000,-650.28487572,0.00030168,2]
[424721616,1781088666000,-627.10737918,0.00030168,2]
[424721618,1781088666000,-613.5865948,0.00030168,2]
[424721621,1781088666000,-644.02,0.00030172,2]
[424721620,1781088666000,-622.9118962,0.00030168,2]
[424721624,1781088666000,-573.19,0.00030173,2]
[424721623,1781088666000,-396.1,0.00030172,2]
[424721622,1781088666000,-306.98,0.00030172,2]
[424721628,1781088666000,-403.6,0.000302,2]
[424721629,1781088666000,-600.95,0.000302,2]
[424721630,1781088666000,-1073.28,0.000302,30]
[424721625,1781088666000,-553.81554381,0.00030181,2]
[424721626,1781088666000,-870.38315012,0.00030181,2]
[424721627,1781088666000,-600.94,0.000302,2]
[424721632,1781088666000,-665.0,0.00030212,30]
[424721631,1781088666000,-620.0,0.00030212,30]
[424721635,1781088666000,-2029.0,0.00030212,30]
[424721661,1781088666000,-8827.35976351,0.00030433,7]
[424721710,1781088666000,-963.17000366,0.00030742,2]
[424721658,1781088666000,-933.0,0.00030432,2]
[424721702,1781088666000,-1280.96003376,0.00030742,2]
[424721700,1781088666000,-2263.24379384,0.00030742,2]
[424721698,1781088666000,-882.89114537,0.00030742,2]
[424721699,1781088666000,-1189.94185965,0.00030742,2]
[424721695,1781088666000,-1732.38431963,0.00030742,2]
[424721701,1781088666000,-923.70088098,0.00030742,2]
[424721703,1781088666000,-907.82828293,0.00030742,2]
[424721706,1781088666000,-883.75816289,0.00030742,2]
[424721707,1781088666000,-769.84165683,0.00030742,2]
[424721705,1781088666000,-824.12685979,0.00030742,2]
[424721709,1781088666000,-945.3148482,0.00030742,2]
[424721708,1781088666000,-767.07083769,0.00030742,2]
[424721696,1781088666000,-773.61803738,0.00030742,2]
[424721711,1781088666000,-1027.94814194,0.00030742,2]
[424721713,1781088666000,-862.27514942,0.00030743,2]
[424721715,1781088666000,-956.72944667,0.00030743,2]
[424721714,1781088666000,-928.37672208,0.00030743,2]
[424721717,1781088666000,-838.06054564,0.00030743,2]
[424721716,1781088666000,-778.33650638,0.00030743,2]
[424721718,1781088666000,-900.85189979,0.00030743,2]
[424721719,1781088666000,-850.1662151,0.00030743,2]
[424721720,1781088666000,-778.0492262,0.00030743,2]
[424721721,1781088666000,-943.06638017,0.00030743,2]
[424721724,1781088666000,-957.05658467,0.00030743,2]
[424721723,1781088666000,-903.74960052,0.00030743,2]
[424721660,1781088666000,-17930.43866206,0.00030433,7]
[424721712,1781088666000,-823.82516897,0.00030742,2]
[424721693,1781088666000,-766.42989838,0.00030742,2]
[424721722,1781088666000,-861.65491393,0.00030743,2]
[424721694,1781088666000,-810.45558453,0.00030742,2]
[424721697,1781088666000,-2000.38476814,0.00030742,2]
[424721669,1781088666000,-1679.91657541,0.000305,12]
[424721679,1781088666000,-1733.91,0.00030708,2]
[424721668,1781088666000,-350.0,0.00030473,6]
[424721672,1781088666000,-500.0,0.00030572,2]
[424721674,1781088666000,-470.0,0.00030572,2]
[424721676,1781088666000,-577.78,0.000306,7]
[424721673,1781088666000,-500.0,0.00030572,2]
[424721670,1781088666000,-423.74,0.000305,7]
[424721675,1781088666000,-194.0,0.00030582,120]
[424721677,1781088666000,-1166.92,0.0003063,120]
[424721671,1781088666000,-2500.0,0.000305,2]
[424721678,1781088666000,-792.33,0.00030635,30]
[424721662,1781088666000,-200.0,0.00030437,2]
[424721680,1781088666000,-179.97120458,0.00030709,2]
[424721682,1781088666000,-200.0,0.00030742,2]
[424721704,1781088666000,-984.50307169,0.00030742,2]
[424721684,1781088666000,-1029.67921329,0.00030742,2]
[424721692,1781088666000,-860.02943407,0.00030742,2]
[424721690,1781088666000,-912.79102216,0.00030742,2]
[424721689,1781088666000,-874.16707674,0.00030742,2]
[424721688,1781088666000,-763.97839591,0.00030742,2]
[424721683,1781088666000,-200.0,0.00030742,2]
[424721686,1781088666000,-1952.6002793,0.00030742,2]
[424721685,1781088666000,-1146.68519747,0.00030742,2]
[424721691,1781088666000,-801.96752374,0.00030742,2]
[424721681,1781088666000,-200.0,0.00030742,2]
[424721687,1781088666000,-816.4317486,0.00030742,2]
[424721774,1781088667000,-577.78,0.000312,7]
[424721765,1781088667000,-250.0,0.00031129,2]
[424721773,1781088667000,-150.311851,0.00031185,2]
[424721756,1781088667000,-497.15,0.00031,2]
[424721762,1781088667000,-1871.13,0.00031096,5]
[424721763,1781088667000,-265.0,0.00031124,3]
[424721761,1781088667000,-179.97120458,0.00031057,2]
[424721757,1781088667000,-150.0,0.00031011,2]
[424721760,1781088667000,-200.0,0.00031049,2]
[424721759,1781088667000,-200.0,0.00031049,2]
[424721758,1781088667000,-200.0,0.00031049,2]
[424721772,1781088667000,-792.33,0.00031133,30]
[424721769,1781088667000,-250.0,0.00031129,2]
[424721775,1781088667000,-1000.0,0.000312,7]
[424721766,1781088667000,-250.0,0.00031129,2]
[424721767,1781088667000,-250.0,0.00031129,2]
[424721770,1781088667000,-250.0,0.00031129,2]
[424721771,1781088667000,-250.0,0.00031129,2]
[424721768,1781088667000,-250.0,0.00031129,2]
[424721777,1781088667000,-665.0,0.00031212,30]
[424721782,1781088667000,-473.0,0.00031212,30]
[424721780,1781088667000,-2029.0,0.00031212,30]
[424721779,1781088667000,-1839.0,0.00031212,30]
[424721781,1781088667000,-641.0,0.00031212,30]
[424721753,1781088667000,-1600.0,0.00031,5]
[424721784,1781088667000,-627.0,0.00031212,30]
[424721764,1781088667000,-350.0,0.00031125,18]
[424721755,1781088667000,-423.74,0.00031,7]
[424721741,1781088667000,-250.0,0.00030798,2]
[424721752,1781088667000,-160.0,0.00031,120]
[424721783,1781088667000,-1757.0,0.00031212,30]
[424721725,1781088667000,-773.62210987,0.00030743,2]
[424721726,1781088667000,-858.45753914,0.00030743,2]
[424721727,1781088667000,-757.29993137,0.00030743,2]
[424721730,1781088667000,-766.9832435,0.00030744,2]
[424721731,1781088667000,-823.25537295,0.00030744,2]
[424721729,1781088667000,-783.88422398,0.00030743,2]
[424721732,1781088667000,-778.63987025,0.00030744,2]
[424721733,1781088667000,-2500.0,0.0003075,2]
[424721734,1781088667000,-241.6875,0.00030766,2]
[424721728,1781088667000,-812.85609465,0.00030743,2]
[424721735,1781088667000,-250.0,0.00030798,2]
[424721736,1781088667000,-250.0,0.00030798,2]
[424721737,1781088667000,-250.0,0.00030798,2]
[424721738,1781088667000,-250.0,0.00030798,2]
[424721740,1781088667000,-250.0,0.00030798,2]
[424721739,1781088667000,-250.0,0.00030798,2]
[424721749,1781088667000,-7624.8,0.000309,2]
[424721747,1781088667000,-748.0,0.00030875,6]
[424721751,1781088667000,-2541.59,0.000309,2]
[424721745,1781088667000,-201.0,0.0003084,30]
[424721746,1781088667000,-296.91849704,0.00030868,2]
[424721743,1781088667000,-5005.18081711,0.00030839,6]
[424721748,1781088667000,-350.0,0.00030879,5]
[424721750,1781088667000,-2541.6,0.000309,2]
[424721742,1781088667000,-250.0,0.00030798,2]
[424721744,1781088667000,-1639.91309801,0.0003084,2]
[424721754,1781088667000,-9854.0,0.00031,2]
[424721787,1781088667000,-646.0,0.00031212,30]
[424721776,1781088667000,-620.0,0.00031212,30]
[424721786,1781088667000,-1829.0,0.00031212,30]
[424721815,1781088667000,-2343.12033516,0.00031606,2]
[424721823,1781088667000,-928.34164485,0.00031606,2]
[424721817,1781088667000,-916.77407509,0.00031606,2]
[424721818,1781088667000,-1049.00049209,0.00031606,2]
[424721819,1781088667000,-1032.03532088,0.00031606,2]
[424721816,1781088667000,-979.71809832,0.00031606,2]
[424721821,1781088667000,-972.54670144,0.00031606,2]
[424721820,1781088667000,-919.71587805,0.00031606,2]
[424721830,1781088667000,-1075.60319227,0.00031606,2]
[424721832,1781088667000,-1089.39393951,0.00031606,2]
[424721828,1781088667000,-2715.89255261,0.00031606,2]
[424721831,1781088667000,-1537.15204051,0.00031606,2]
[424721829,1781088667000,-1108.44105717,0.00031606,2]
[424721834,1781088667000,-988.95223175,0.00031606,2]
[424721827,1781088667000,-1427.93023158,0.00031606,2]
[424721837,1781088667000,-988.59020277,0.00031606,2]
[424721835,1781088667000,-923.8099882,0.00031606,2]
[424721833,1781088667000,-1181.40368603,0.00031606,2]
[424721836,1781088667000,-920.48500522,0.00031606,2]
[424721838,1781088667000,-1034.7301793,0.00031606,2]
[424721841,1781088667000,-1005.67265477,0.00031606,2]
[424721839,1781088667000,-1114.05206649,0.00031606,2]
[424721843,1781088667000,-1037.49382585,0.00031606,2]
[424721842,1781088667000,-934.00380766,0.00031606,2]
[424721840,1781088667000,-1148.07533601,0.00031606,2]
[424721844,1781088667000,-1020.19945812,0.00031606,2]
[424721785,1781088667000,-547.0,0.00031212,30]
[424721822,1781088667000,-2078.86118356,0.00031606,2]
[424721824,1781088667000,-2400.46172177,0.00031606,2]
[424721826,1781088667000,-1091.17153771,0.00031606,2]
[424721813,1781088667000,-1235.61505594,0.00031606,2]
[424721778,1781088667000,-551.0,0.00031212,30]
[424721825,1781088667000,-1059.46937444,0.00031606,2]
[424721789,1781088667000,-150.0,0.00031233,60]
[424721799,1781088667000,-250.0,0.0003146,2]
[424721797,1781088667000,-250.0,0.0003146,2]
[424721798,1781088667000,-250.0,0.0003146,2]
[424721790,1781088667000,-329.92,0.000313,11]
[424721788,1781088667000,-1235.0,0.00031212,30]
[424721793,1781088667000,-200.0,0.0003136,2]
[424721795,1781088667000,-179.97120458,0.00031405,2]
[424721791,1781088667000,-1116.17995082,0.00031318,2]
[424721796,1781088667000,-748.0,0.00031409,6]
[424721794,1781088667000,-200.0,0.0003136,2]
[424721845,1781088667000,-1131.67965621,0.00031606,2]
[424721792,1781088667000,-200.0,0.0003136,2]
[424721801,1781088667000,-250.0,0.0003146,2]
[424721814,1781088667000,-1376.02223696,0.00031606,2]
[424721800,1781088667000,-250.0,0.0003146,2]
[424721808,1781088667000,-300.0,0.00031507,30]
[424721809,1781088667000,-300.0,0.00031507,30]
[424721805,1781088667000,-212.18617711,0.00031506,30]
[424721811,1781088667000,-1014.89369675,0.00031604,2]
[424721807,1781088667000,-1000.0,0.00031507,40]
[424721806,1781088667000,-231.12500189,0.00031506,30]
[424721804,1781088667000,-150.0,0.000315,2]
[424721812,1781088667000,-935.2781181,0.00031606,2]
[424721803,1781088667000,-201.09237687,0.000315,2]
[424721810,1781088667000,-239.0,0.00031507,30]
[424721802,1781088667000,-250.0,0.0003146,2]
[424721887,1781088668000,-2000.0,0.0003175,23]
[424721898,1781088668000,-250.0,0.00031791,2]
[424721888,1781088668000,-2000.0,0.0003175,23]
[424721886,1781088668000,-2000.0,0.0003175,23]
[424721879,1781088668000,-2360.95,0.0003172,21]
[424721885,1781088668000,-2000.0,0.0003175,23]
[424721882,1781088668000,-662.46669759,0.00031731,7]
[424721883,1781088668000,-159.34890899,0.00031731,7]
[424721880,1781088668000,-2946.25,0.00031725,14]
[424721881,1781088668000,-216.78508448,0.00031731,7]
[424721899,1781088668000,-250.0,0.00031791,2]
[424721884,1781088668000,-150.0,0.00031733,7]
[424721889,1781088668000,-2000.0,0.0003175,23]
[424721908,1781088668000,-662.46669759,0.00031802,7]
[424721897,1781088668000,-150.0,0.00031774,7]
[424721893,1781088668000,-216.78508448,0.00031767,7]
[424721890,1781088668000,-2000.0,0.0003175,23]
[424721896,1781088668000,-150.0,0.00031769,7]
[424721894,1781088668000,-662.46669759,0.00031767,7]
[424721895,1781088668000,-159.34890899,0.00031767,7]
[424721891,1781088668000,-179.97120458,0.00031752,2]
[424721900,1781088668000,-250.0,0.00031791,2]
[424721903,1781088668000,-577.78,0.000318,7]
[424721902,1781088668000,-250.0,0.00031791,2]
[424721901,1781088668000,-250.0,0.00031791,2]
[424721904,1781088668000,-500.0,0.000318,2]
[424721877,1781088668000,-152.0,0.000317,3]
[424721892,1781088668000,-150.0,0.00031755,7]
[424721876,1781088668000,-150.0,0.00031697,7]
[424721849,1781088668000,-1030.14904696,0.00031606,2]
[424721875,1781088668000,-159.34890899,0.00031696,7]
[424721909,1781088668000,-159.34890899,0.00031802,7]
[424721848,1781088668000,-928.34653185,0.00031606,2]
[424721847,1781088668000,-1084.49952062,0.00031606,2]
[424721853,1781088668000,-150.0,0.0003161,2]
[424721850,1781088668000,-987.90644754,0.00031607,2]
[424721852,1781088668000,-150.0,0.0003161,2]
[424721851,1781088668000,-934.36784431,0.00031607,2]
[424721859,1781088668000,-150.0,0.00031644,2]
[424721862,1781088668000,-150.0,0.0003166,7]
[424721861,1781088668000,-150.0,0.0003166,7]
[424721860,1781088668000,-150.0,0.0003166,7]
[424721855,1781088668000,-150.0,0.0003161,2]
[424721856,1781088668000,-150.0,0.0003161,2]
[424721878,1781088668000,-150.0,0.00031708,7]
[424721854,1781088668000,-150.0,0.0003161,2]
[424721858,1781088668000,-792.33,0.00031631,30]
[424721864,1781088668000,-216.78508448,0.0003166,7]
[424721873,1781088668000,-216.78508448,0.00031696,7]
[424721874,1781088668000,-662.46669759,0.00031696,7]
[424721865,1781088668000,-150.0,0.0003166,7]
[424721863,1781088668000,-150.0,0.0003166,7]
[424721868,1781088668000,-150.0,0.0003166,7]
[424721866,1781088668000,-150.0,0.0003166,7]
[424721870,1781088668000,-662.46669759,0.0003166,7]
[424721867,1781088668000,-150.13848777,0.0003166,7]
[424721871,1781088668000,-159.34890899,0.0003166,7]
[424721869,1781088668000,-150.0,0.0003166,7]
[424721872,1781088668000,-150.0,0.0003169,30]
[424721857,1781088668000,-187.70845523,0.0003161,2]
[424721907,1781088668000,-216.78508448,0.00031802,7]
[424721846,1781088668000,-1033.98589672,0.00031606,2]
[424721906,1781088668000,-358.0,0.000318,2]
[424721939,1781088668000,-150.0,0.00031993,7]
[424721941,1781088668000,-937.44,0.00032,30]
[424721943,1781088668000,-160.0,0.00032,120]
[424721945,1781088668000,-1170.86291247,0.00032,120]
[424721947,1781088668000,-1053.85299733,0.00032,120]
[424721946,1781088668000,-446.45724065,0.00032,120]
[424721944,1781088668000,-4875.0,0.00032,2]
[424721942,1781088668000,-160.0,0.00032,120]
[424721950,1781088668000,-208.05726434,0.00032,120]
[424721953,1781088668000,-1097.83840734,0.00032,120]
[424721952,1781088668000,-763.62785761,0.00032,120]
[424721954,1781088668000,-410.92595041,0.00032,120]
[424721958,1781088668000,-539.16918205,0.00032,120]
[424721937,1781088668000,-159.34890899,0.0003198,7]
[424721959,1781088668000,-1323.88286163,0.00032,120]
[424721962,1781088668000,-1293.5078227,0.00032,120]
[424721960,1781088668000,-615.86881584,0.00032,120]
[424721951,1781088668000,-345.62483209,0.00032,120]
[424721957,1781088668000,-978.05956139,0.00032,120]
[424721961,1781088668000,-466.19776915,0.00032,120]
[424721956,1781088668000,-317.25471197,0.00032,120]
[424721966,1781088668000,-1524.44686717,0.00032,120]
[424721964,1781088668000,-380.57006474,0.00032,120]
[424721963,1781088668000,-183.77826974,0.00032,120]
[424721969,1781088668000,-318.0,0.00032,5]
[424721970,1781088668000,-284.95203121,0.00032,30]
[424721968,1781088668000,-700.0,0.00032,2]
[424721965,1781088668000,-1233.25712152,0.00032,120]
[424721955,1781088668000,-2327.82353513,0.00032,120]
[424721940,1781088668000,-622.8,0.00032,7]
[424721967,1781088668000,-537.38185146,0.00032,120]
[424721949,1781088668000,-551.64915191,0.00032,120]
[424721948,1781088668000,-911.60756487,0.00032,120]
[424721905,1781088668000,-500.0,0.000318,2]
[424721912,1781088668000,-216.78508448,0.00031838,7]
[424721911,1781088668000,-150.0,0.00031805,7]
[424721924,1781088668000,-749.7,0.000319,120]
[424721922,1781088668000,-150.0,0.00031887,7]
[424721923,1781088668000,-150.0,0.00031898,7]
[424721917,1781088668000,-350.0,0.00031863,6]
[424721916,1781088668000,-150.0,0.0003185,7]
[424721914,1781088668000,-159.34890899,0.00031838,7]
[424721915,1781088668000,-150.0,0.00031842,7]
[424721913,1781088668000,-662.46669759,0.00031838,7]
[424721918,1781088668000,-216.78508448,0.00031873,7]
[424721919,1781088668000,-662.46669759,0.00031873,7]
[424721910,1781088668000,-150.0,0.00031803,7]
[424721920,1781088668000,-159.34890899,0.00031873,7]
[424721921,1781088668000,-150.0,0.00031878,7]
[424721933,1781088668000,-150.0,0.00031946,7]
[424721931,1781088668000,-662.46669759,0.00031945,7]
[424721935,1781088668000,-216.78508448,0.0003198,7]
[424721932,1781088668000,-159.34890899,0.00031945,7]
[424721934,1781088668000,-150.0,0.0003195,7]
[424721930,1781088668000,-216.78508448,0.00031945,7]
[424721936,1781088668000,-662.46669759,0.0003198,7]
[424721926,1781088668000,-662.46669759,0.00031909,7]
[424721928,1781088668000,-150.0,0.00031914,7]
[424721925,1781088668000,-216.78508448,0.00031909,7]
[424721938,1781088668000,-150.0,0.00031987,7]
[424721927,1781088668000,-159.34890899,0.00031909,7]
[424721929,1781088668000,-748.0,0.00031943,7]
[424721997,1781088669000,-251.18526734,0.00032123,2]
[424722001,1781088669000,-792.33,0.0003213,30]
[424722003,1781088669000,-241.6875,0.00032135,2]
[424722004,1781088669000,-150.0,0.00032136,7]
[424722006,1781088669000,-864.78058953,0.0003214,2]
[424722007,1781088669000,-151.0,0.0003214,2]
[424722009,1781088669000,-216.78508448,0.00032158,7]
[424722008,1781088669000,-162.50138234,0.00032148,7]
[424722010,1781088669000,-662.46669759,0.00032158,7]
[424722017,1781088669000,-159.34890899,0.00032193,7]
[424721998,1781088669000,-250.0,0.00032123,2]
[424722018,1781088669000,-7624.8,0.000322,2]
[424722011,1781088669000,-159.34890899,0.00032158,7]
[424722015,1781088669000,-216.78508448,0.00032193,7]
[424722016,1781088669000,-662.46669759,0.00032193,7]
[424722013,1781088669000,-150.0,0.00032168,7]
[424722014,1781088669000,-150.0,0.00032183,7]
[424721995,1781088669000,-159.34890899,0.00032122,7]
[424722020,1781088669000,-2541.59,0.000322,2]
[424722024,1781088669000,-620.0,0.00032212,30]
[424722022,1781088669000,-150.0,0.00032204,7]
[424722021,1781088669000,-209.09,0.000322,2]
[424722027,1781088669000,-1839.0,0.00032212,30]
[424722026,1781088669000,-551.0,0.00032212,30]
[424722023,1781088669000,-1286.1,0.0003221,5]
[424722012,1781088669000,-150.0,0.00032163,7]
[424722005,1781088669000,-693.39197629,0.0003214,2]
[424721990,1781088669000,-5606.5257773,0.000321,6]
[424722002,1781088669000,-150.0,0.00032132,7]
[424722029,1781088669000,-641.0,0.00032212,30]
[424721971,1781088669000,-215.92376884,0.00032,30]
[424721972,1781088669000,-150.0,0.00032001,7]
[424721973,1781088669000,-150.0,0.00032012,7]
[424721974,1781088669000,-216.78508448,0.00032016,7]
[424721977,1781088669000,-150.0,0.00032023,7]
[424721980,1781088669000,-662.46669759,0.00032051,7]
[424721976,1781088669000,-159.34890899,0.00032016,7]
[424721975,1781088669000,-662.46669759,0.00032016,7]
[424721978,1781088669000,-150.0,0.00032041,7]
[424721981,1781088669000,-159.34890899,0.00032051,7]
[424721979,1781088669000,-216.78508448,0.00032051,7]
[424721983,1781088669000,-150.0,0.00032059,7]
[424721986,1781088669000,-159.34890899,0.00032087,7]
[424721982,1781088669000,-1905.29,0.00032055,5]
[424721985,1781088669000,-662.46669759,0.00032087,7]
[424721984,1781088669000,-216.78508448,0.00032087,7]
[424721987,1781088669000,-150.0,0.00032088,7]
[424721988,1781088669000,-150.0,0.00032095,7]
[424721992,1781088669000,-302.73312366,0.0003212,2]
[424721989,1781088669000,-179.97120458,0.000321,2]
[424721991,1781088669000,-150.0,0.00032114,7]
[424721996,1781088669000,-5028.88591618,0.00032123,2]
[424721994,1781088669000,-662.46669759,0.00032122,7]
[424722000,1781088669000,-250.0,0.00032123,2]
[424721999,1781088669000,-250.0,0.00032123,2]
[424721993,1781088669000,-216.78508448,0.00032122,7]
[424722025,1781088669000,-665.0,0.00032212,30]
[424722030,1781088669000,-473.0,0.00032212,30]
[424722060,1781088669000,-150.0,0.00032313,7]
[424722059,1781088669000,-105055.59165269,0.000323,120]
[424722062,1781088669000,-216.78508448,0.00032335,7]
[424722064,1781088669000,-159.34890899,0.00032335,7]
[424722058,1781088669000,-200.0,0.000323,12]